fUSD/lending_fUSD_20260426
["ID","MTS","AMOUNT","RATE_DAILY","PERIOD"]
[421151664,1777171841663,-1048.0,0.00015696,2]
[421151665,1777171841672,-3537.654,0.00015696,2]
[421151666,1777171841682,-1266.0,0.00015696,2]
[421151667,1777171841691,-416.0,0.00015696,2]
[421151668,1777171841701,-6030.078,0.00015696,2]
[421151669,1777171841711,-159.0,0.00016493,5]
[421151670,1777171841721,-150.47,0.000165,2]
[421151671,1777171841730,-160.0,0.00016781,3]
[421151672,1777171841740,-155.0,0.00016906,5]
[421151673,1777171841750,-156.0,0.00016906,5]
[421151674,1777171841760,-280.0,0.0001727,2]
[421151675,1777171841770,-506.0,0.00017289,5]
[421151676,1777171841780,-200.0,0.00017528,2]
[421151677,1777171841790,-394.78171553,0.00017528,2]
[421151678,1777171841803,-1286.01217794,0.00017528,2]
[421151679,1777171841835,-414.78281653,0.00017528,2]
[421151680,1777171842190,-1658.00289802,0.00017528,2]
[421151692,1777171843228,-500.0,7.996e-05,2]
[421151693,1777171843238,-1603.704,0.00015868,2]
[421151694,1777171843248,-4812.17595109,0.00017528,2]
[421151695,1777171843257,-1280.88388878,0.00017528,2]
[421151696,1777171843267,-187.78006525,0.00017528,2]
[421151697,1777171843277,-151.0,0.00017528,2]
[421151698,1777171843287,-174.61919141,0.00017528,2]
[421151699,1777171843297,-8882.6885148,0.00017583,2]
[421151700,1777171843306,-153.30169157,0.00017583,2]
[421151701,1777171843316,-9211.34798985,0.00017638,2]
[421151702,1777171843326,-669.47935067,0.00017693,2]
[421151703,1777171843336,-7019.55,0.00017728,2]
[421151704,1777171843345,-1328.27659266,0.00018076,2]
[421151705,1777171843354,-194.72792766,0.00018076,2]
[421151706,1777171843364,-181.08010149,0.00018076,2]
[421151707,1777171843374,-500.0,0.00018121,2]
[421151708,1777171843383,-500.0,0.00018398,2]
[421151709,1777171843393,-150.0,0.00018399,2]
[421151710,1777171843402,-150.0,0.00018399,2]
[421151711,1777171843412,-160.0,0.00018518,3]
[421151712,1777171843422,-1377.42282659,0.00018624,2]
[421151713,1777171843432,-292.62859695,0.00018624,2]
[421151714,1777171843442,-207.8888015,0.00018624,2]
[421151715,1777171843451,-186.86851845,0.00018664,2]
[421151716,1777171843461,-2985.96892891,0.00019132,44]
[421151717,1777171843471,-1428.38747117,0.00019172,2]
[421151718,1777171843480,-633.82913072,0.0001972,2]
[421151719,1777171843490,-1294.02,0.00019999,2]
[421151720,1777171843499,-588.34,0.00019999,2]
[421151721,1777171843509,-150.0,0.00019999,2]
[421151722,1777171843518,-158.0,0.0002,2]
[421151723,1777171843528,-213.0,0.0002,2]
[421151724,1777171843537,-231.0,0.0002,2]
[421151725,1777171843548,-308.0,0.0002,2]
[421151726,1777171843558,-158.0,0.0002,2]
[421151727,1777171843567,-931.0,0.0002,2]
[421151728,1777171843577,-388.722255,0.0002,10]
[421151729,1777171843587,-9900.03,0.0002,30]
[421151730,1777171843597,-160.0,0.00020255,3]
[421151731,1777171843606,-194.231256,0.00020558,7]
[421151732,1777171843618,-160.0,0.00020558,7]
[421151733,1777171843627,-898.520745,0.00020558,7]
[421151734,1777171843637,-1637.041491,0.00020558,7]
[421151735,1777171843647,-232.115702,0.0002058,2]
[421151737,1777171843656,-151.0,0.00020632,2]
[421151739,1777171843666,-506.0,0.00020978,8]
[421151741,1777171843675,-1222.86695145,0.00021,7]
[421151744,1777171843685,-158.0,0.00021,2]
[421151745,1777171843694,-213.0,0.00021,2]
[421151748,1777171843705,-231.0,0.00021,2]
[421151749,1777171843714,-308.0,0.00021,2]
[421151751,1777171843722,-158.0,0.00021,2]
[421151753,1777171843731,-931.0,0.00021,2]
[421151755,1777171843740,-500.0,0.00021096,7]
[421151757,1777171843748,-732.0,0.00021096,7]
[421151759,1777171843759,-153.0,0.00021297,3]
[421151761,1777171843767,-173.05,0.0002132,13]
[421151763,1777171843776,-173.05,0.0002132,13]
[421151765,1777171843785,-173.05,0.0002132,13]
[421151767,1777171843793,-173.04,0.0002132,13]
[421151769,1777171843801,-186.53,0.0002132,13]
[421151771,1777171843810,-186.53,0.0002132,13]
[421151773,1777171843820,-186.52,0.0002132,13]
[421151775,1777171843828,-174.58,0.0002138,7]
[421151777,1777171843838,-1225.255562,0.00021586,7]
[421151779,1777171843847,-180.065514,0.00021658,2]
[421151781,1777171843856,-469.341842,0.00021658,7]
[421151783,1777171843865,-160.0,0.00021658,7]
[421151785,1777171843875,-282.088531,0.00021658,7]
[421151787,1777171843884,-404.177063,0.00021658,7]
[421151789,1777171843893,-173.05,0.00021868,13]
[421151791,1777171843902,-173.05,0.00021868,13]
[421151793,1777171843911,-173.05,0.00021868,13]
[421151795,1777171843921,-173.04,0.00021868,13]
[421151797,1777171843930,-186.53,0.00021868,13]
[421151799,1777171843939,-186.53,0.00021868,13]
[421151801,1777171843949,-186.52,0.00021868,13]
[421151803,1777171843959,-2000.0,0.000219,2]
[421151805,1777171843968,-2000.0,0.000219,2]
[421151807,1777171843978,-2010.0,0.000219,2]
[421151809,1777171843987,-150.0,0.00021918,2]
[421151811,1777171843997,-150.0,0.00021918,2]
[421151813,1777171844008,-205.71501587,0.00021918,2]
[421151816,1777171844020,-160.0,0.00021991,3]
[421151818,1777171844029,-158.0,0.00022,2]
[421151819,1777171844040,-213.0,0.00022,2]
[421151821,1777171844050,-231.0,0.00022,2]
[421151822,1777171844059,-308.0,0.00022,2]
[421151824,1777171844068,-174.0,0.00022,2]
[421151826,1777171844078,-931.0,0.00022,2]
[421151828,1777171844087,-8436.73294421,0.000221,7]
[421151861,1777171846489,-1999.17231078,0.000221,7]
[421151862,1777171846704,-10203.99243266,0.000221,7]
[421151879,1777171979839,473.7856,7.996e-05,2]
[421151880,1777172048003,159.0,7.996e-05,3]
[421151881,1777172053291,154.0,7.996e-05,3]
[421151882,1777172111359,153.0,7.996e-05,3]
[421151883,1777172111407,159.0,7.996e-05,3]
[421151884,1777172141802,638.21,1e-08,2]
[421151885,1777172142571,398.88,1e-08,2]
[421151886,1777172143323,239.33,2e-08,2]
[421151887,1777172165674,159.0,7.996e-05,3]
[421151888,1777172226140,159.0,7.996e-05,3]
[421151889,1777172285559,159.0,7.996e-05,3]
[421151890,1777172315305,178.0,7.996e-05,3]
[421151891,1777172345734,159.0,7.996e-05,3]
[421151892,1777172411377,159.0,7.996e-05,3]
[421151893,1777172465138,159.0,7.996e-05,3]
[421151894,1777172525425,160.0,7.996e-05,3]
[421151895,1777172585732,160.0,7.996e-05,3]
[421151896,1777172645085,160.0,7.996e-05,3]
[421151897,1777172707787,154.0,7.996e-05,3]
[421151898,1777172767812,160.0,7.996e-05,3]
[421151899,1777172828345,160.0,7.996e-05,3]
[421151900,1777173010896,154.0,7.996e-05,3]
[421151902,1777173032303,-257.0,8.219e-05,2]
[421151903,1777173032313,-280.0,8.219e-05,2]
[421151904,1777173032323,-500.0,8.284e-05,2]
[421151905,1777173032333,-500.0,8.305e-05,2]
[421151906,1777173032343,-300.0,8.305e-05,2]
[421151907,1777173032353,-301.88745068,8.322e-05,2]
[421151908,1777173032363,-180.08086038,8.353e-05,2]
[421151909,1777173032377,-2319.91913962,8.353e-05,2]
[421151910,1777173032386,-300.0,8.41e-05,2]
[421151911,1777173032397,-721.1714,8.575e-05,2]
[421151912,1777173032406,-150.0,8.597e-05,2]
[421151913,1777173032416,-500.0,8.598e-05,2]
[421151914,1777173032425,-542.71015587,8.598e-05,2]
[421151915,1777173032435,-320.0,8.598e-05,2]
[421151916,1777173032444,-500.0,8.598e-05,2]
[421151917,1777173032453,-500.0,8.598e-05,2]
[421151918,1777173032463,-500.0,8.598e-05,2]
[421151919,1777173032472,-500.0,8.598e-05,2]
[421151920,1777173032482,-500.0,8.598e-05,2]
[421151921,1777173032491,-500.0,8.598e-05,2]
[421151922,1777173032500,-500.0,8.598e-05,2]
[421151923,1777173032510,-500.0,8.598e-05,2]
[421151924,1777173032519,-500.0,8.598e-05,2]
[421151925,1777173032529,-500.0,8.598e-05,2]
[421151926,1777173032538,-500.0,8.598e-05,2]
[421151927,1777173032548,-500.0,8.598e-05,2]
[421151928,1777173032558,-500.0,8.598e-05,2]
[421151929,1777173032567,-500.0,8.598e-05,2]
[421151931,1777173032576,-500.0,8.598e-05,2]
[421151933,1777173032586,-500.0,8.598e-05,2]
[421151935,1777173032595,-500.0,8.598e-05,2]
[421151938,1777173032605,-500.0,8.598e-05,2]
[421151940,1777173032615,-500.0,8.598e-05,2]
[421151942,1777173032624,-500.0,8.598e-05,2]
[421151944,1777173032633,-500.0,8.598e-05,2]
[421151946,1777173032642,-500.0,8.598e-05,2]
[421151948,1777173032652,-500.0,8.598e-05,2]
[421151950,1777173032662,-500.0,8.598e-05,2]
[421151952,1777173032672,-500.0,8.598e-05,2]
[421151954,1777173032681,-500.0,8.598e-05,2]
[421151956,1777173032691,-500.0,8.598e-05,2]
[421151958,1777173032700,-500.0,8.598e-05,2]
[421151961,1777173032711,-500.0,8.598e-05,2]
[421151963,1777173032720,-500.0,8.598e-05,2]
[421151965,1777173032730,-500.0,8.598e-05,2]
[421151967,1777173032741,-500.0,8.598e-05,2]
[421151969,1777173032750,-500.0,8.598e-05,2]
[421151971,1777173032761,-500.0,8.598e-05,2]
[421151973,1777173032770,-500.0,8.598e-05,2]
[421151975,1777173032779,-500.0,8.598e-05,2]
[421151977,1777173032789,-500.0,8.598e-05,2]
[421151979,1777173032799,-500.0,8.598e-05,2]
[421151981,1777173032809,-500.0,8.598e-05,2]
[421151982,1777173032819,-500.0,8.598e-05,2]
[421151983,1777173032828,-500.0,8.598e-05,2]
[421151984,1777173032838,-500.0,8.598e-05,2]
[421151985,1777173032848,-500.0,8.598e-05,2]
[421151986,1777173032857,-193.02793707,8.598e-05,2]
[421151987,1777173032868,-500.0,8.598e-05,2]
[421151988,1777173032878,-500.0,8.598e-05,2]
[421151989,1777173032888,-500.0,8.598e-05,2]
[421151990,1777173032898,-500.0,8.598e-05,2]
[421151991,1777173032908,-500.0,8.598e-05,2]
[421151992,1777173032918,-500.0,8.598e-05,2]
[421151993,1777173032927,-500.0,8.598e-05,2]
[421151994,1777173032937,-500.0,8.598e-05,2]
[421151995,1777173032947,-500.0,8.598e-05,2]
[421151996,1777173032956,-500.0,8.598e-05,2]
[421151997,1777173032966,-500.0,8.598e-05,2]
[421151998,1777173032975,-49649.13792214,8.599e-05,2]
[421151999,1777173032988,-400.0,8.599e-05,2]
[421152000,1777173032999,-642.29822088,8.599e-05,2]
[421152001,1777173033038,-665.72995843,8.599e-05,2]
[421152002,1777173033050,-23113.47918874,8.599e-05,2]
[421152003,1777173033062,-299.27314,8.599e-05,2]
[421152004,1777173033134,-874.59964105,8.599e-05,2]
[421152005,1777173033158,-2182.37961044,8.599e-05,2]
[421152006,1777173033172,-575.75,8.599e-05,2]
[421152015,1777173038680,-32304.54800671,8.599e-05,2]
[421152016,1777173038692,-1139.21132138,8.599e-05,2]
[421152017,1777173038739,-2742.85378632,8.599e-05,2]
[421152018,1777173038791,-1256.40417357,8.599e-05,2]
[421152019,1777173038845,-31524.74727275,8.599e-05,2]
[421152022,1777173040832,-1329.69917377,8.599e-05,2]
[421152023,1777173041094,-2435.55768749,8.599e-05,2]
[421152042,1777173043563,-463.58757472,8.599e-05,2]
[421152043,1777173043575,-131428.33332161,8.599e-05,2]
[421152044,1777173043584,-500.0,8.599e-05,2]
[421152045,1777173043594,-498.40054986,8.599e-05,2]
[421152046,1777173043603,-500.0,8.599e-05,2]
[421152047,1777173043612,-430.57080433,8.599e-05,2]
[421152048,1777173043622,-2500.0,8.6e-05,2]
[421152049,1777173043632,-34686.30479659,8.6e-05,2]
[421152050,1777173043651,-1438.37307852,8.6e-05,2]
[421152051,1777173043832,-516683.04846275,8.6e-05,2]
[421152056,1777173046709,-4665.66982387,8.6e-05,2]
[421152057,1777173046867,-11643.53163922,8.6e-05,2]
[421152058,1777173046963,-2546.592,8.6e-05,2]
[421152059,1777173046975,-588.55435109,8.6e-05,2]
[421152060,1777173904219,150.0,7.816e-05,2]
[421152061,1777173917349,165.27848886,7.816e-05,2]
[421152062,1777173917427,150.00000001,7.816e-05,2]
[421152063,1777173919920,151.06104443,7.816e-05,2]
[421152064,1777173924706,150.0,7.816e-05,2]
[421152065,1777173931516,150.0,7.816e-05,2]
[421152066,1777173935095,150.0,7.816e-05,2]
[421152067,1777173935154,150.0,7.816e-05,2]
[421152068,1777173935554,150.0,7.925e-05,2]
[421152069,1777173938231,-150.0,8.034e-05,2]
[421152070,1777173938255,-51.88015437,8.142e-05,2]
[421152071,1777174000816,-256.0,8.142e-05,2]
[421152072,1777174000842,-1.0,8.142e-05,2]
[421152078,1777174231714,-256.0,8.142e-05,2]
[421152079,1777174231724,-97.11984563,8.142e-05,2]
[421152080,1777174231734,-344.752932,8.178e-05,2]
[421152081,1777174231744,-280.0,8.219e-05,2]
[421152082,1777174231753,-150.0,8.251e-05,2]
[421152083,1777174231763,-300.0,8.256e-05,2]
[421152084,1777174231774,-1200.0,8.256e-05,2]
[421152085,1777174231784,-300.0,8.256e-05,2]
[421152086,1777174231794,-300.0,8.256e-05,2]
[421152087,1777174231805,-2500.0,8.257e-05,2]
[421152088,1777174231815,-2500.0,8.257e-05,2]
[421152089,1777174231826,-2500.0,8.257e-05,2]
[421152090,1777174231835,-150.0,8.298e-05,2]
[421152091,1777174231845,-158427.5266,8.299e-05,2]
[421152092,1777174231855,-150.0,8.359e-05,2]
[421152093,1777174231864,-4107.0721,8.398e-05,2]
[421152094,1777174231874,-52776.2478,8.399e-05,2]
[421152095,1777174231885,-193.42,8.457e-05,2]
[421152096,1777174231895,-187.81,8.457e-05,2]
[421152097,1777174231905,-217.56,8.457e-05,2]
[421152098,1777174231915,-456.5,8.466e-05,2]
[421152099,1777174231925,-150.0,8.468e-05,2]
[421152100,1777174231935,-500.0,8.498e-05,2]
[421152101,1777174231944,-564.83097723,8.498e-05,2]
[421152102,1777174231955,-500.0,8.498e-05,2]
[421152103,1777174231965,-500.0,8.498e-05,2]
[421152104,1777174231975,-500.0,8.498e-05,2]
[421152105,1777174231985,-500.0,8.498e-05,2]
[421152106,1777174231994,-500.0,8.498e-05,2]
[421152108,1777174232004,-500.0,8.498e-05,2]
[421152110,1777174232014,-500.0,8.498e-05,2]
[421152112,1777174232023,-500.0,8.498e-05,2]
[421152114,1777174232033,-500.0,8.498e-05,2]
[421152115,1777174232043,-500.0,8.498e-05,2]
[421152116,1777174232053,-446.64399577,8.498e-05,2]
[421152117,1777174232062,-500.0,8.498e-05,2]
[421152118,1777174232072,-500.0,8.498e-05,2]
[421152119,1777174232082,-500.0,8.498e-05,2]
[421152120,1777174232091,-500.0,8.498e-05,2]
[421152121,1777174232101,-500.0,8.498e-05,2]
[421152122,1777174232111,-500.0,8.498e-05,2]
[421152123,1777174232121,-500.0,8.498e-05,2]
[421152124,1777174232130,-500.0,8.498e-05,2]
[421152126,1777174232140,-500.0,8.498e-05,2]
[421152127,1777174232149,-500.0,8.498e-05,2]
[421152128,1777174232159,-500.0,8.498e-05,2]
[421152129,1777174232168,-500.0,8.498e-05,2]
[421152130,1777174232178,-500.0,8.498e-05,2]
[421152131,1777174232187,-500.0,8.498e-05,2]
[421152132,1777174232197,-500.0,8.498e-05,2]
[421152133,1777174232207,-500.0,8.498e-05,2]
[421152134,1777174232218,-500.0,8.498e-05,2]
[421152135,1777174232227,-500.0,8.498e-05,2]
[421152136,1777174232237,-500.0,8.498e-05,2]
[421152137,1777174232247,-500.0,8.498e-05,2]
[421152138,1777174232256,-500.0,8.498e-05,2]
[421152139,1777174232266,-500.0,8.498e-05,2]
[421152140,1777174232275,-500.0,8.498e-05,2]
[421152141,1777174232285,-500.0,8.498e-05,2]
[421152142,1777174232295,-500.0,8.498e-05,2]
[421152143,1777174232304,-500.0,8.498e-05,2]
[421152145,1777174232314,-500.0,8.498e-05,2]
[421152147,1777174232323,-190.10304329,8.498e-05,2]
[421152149,1777174232333,-500.0,8.498e-05,2]
[421152151,1777174232342,-500.0,8.498e-05,2]
[421152153,1777174232351,-500.0,8.498e-05,2]
[421152155,1777174232360,-500.0,8.498e-05,2]
[421152157,1777174232370,-500.0,8.498e-05,2]
[421152159,1777174232379,-500.0,8.498e-05,2]
[421152161,1777174232388,-500.0,8.498e-05,2]
[421152163,1777174232397,-500.0,8.498e-05,2]
[421152165,1777174232407,-500.0,8.498e-05,2]
[421152167,1777174232416,-500.0,8.498e-05,2]
[421152169,1777174232425,-500.0,8.498e-05,2]
[421152171,1777174232434,-500.0,8.498e-05,2]
[421152173,1777174232443,-500.0,8.498e-05,2]
[421152175,1777174232453,-500.0,8.498e-05,2]
[421152177,1777174232462,-644.66439958,8.498e-05,2]
[421152178,1777174232471,-500.0,8.498e-05,2]
[421152180,1777174232481,-500.0,8.498e-05,2]
[421152181,1777174232490,-500.0,8.498e-05,2]
[421152182,1777174232500,-500.0,8.498e-05,2]
[421152183,1777174232509,-500.0,8.498e-05,2]
[421152184,1777174232519,-500.0,8.498e-05,2]
[421152185,1777174232528,-500.0,8.498e-05,2]
[421152186,1777174232538,-500.0,8.498e-05,2]
[421152187,1777174232547,-294.34338295,8.498e-05,2]
[421152188,1777174232556,-500.0,8.498e-05,2]
[421152189,1777174232566,-279.10830864,8.498e-05,2]
[421152190,1777174232584,-220.89169136,8.498e-05,2]
[421152191,1777174232594,-500.0,8.498e-05,2]
[421152192,1777174232603,-224.96625059,8.498e-05,2]
[421152193,1777174232614,-224.36766772,8.498e-05,2]
[421152194,1777174232624,-167.48425241,8.498e-05,2]
[421152195,1777174232635,-1322.37552332,8.498e-05,2]
[421152196,1777174232648,-93.17222427,8.498e-05,2]
[421152197,1777174232658,-177.378,8.498e-05,2]
[421152198,1777174232667,-150.0,8.576e-05,2]
[421152199,1777174232676,-1065.68196982,8.6e-05,2]
[421152200,1777174232695,-797.59445327,8.6e-05,2]
[421152201,1777174232706,-765.71157577,8.6e-05,2]
[421152202,1777174232723,-3753.47941884,8.6e-05,2]
[421152203,1777174232733,-173.9222495,8.6e-05,2]
[421152204,1777174232742,-2181.2373278,8.6e-05,2]
[421152205,1777174232755,-802.49139687,8.6e-05,2]
[421152206,1777174232767,-1249.39039257,8.6e-05,2]
[421152207,1777174232779,-500.0,8.6e-05,2]
[421152208,1777174232791,-1148.76047939,8.6e-05,2]
[421152210,1777174238940,-500.0,8.498e-05,2]
[421152211,1777174238949,-17460.49647241,8.6e-05,2]
[421152212,1777174238961,-1525.92095784,8.6e-05,2]
[421152213,1777174238996,-9791.07372302,8.6e-05,2]
[421152214,1777174239007,-160.0,8.6e-05,3]
[421152215,1777174239016,-156.0,8.6e-05,3]
[421152216,1777174239026,-154.0,8.6e-05,3]
[421152217,1777174239035,-152.0,8.626e-05,7]
[421152218,1777174239045,-151.318085,8.685e-05,2]
[421152219,1777174239054,-150.0,8.685e-05,2]
[421152220,1777174239064,-150.0,8.685e-05,2]
[421152221,1777174239074,-150.0,8.685e-05,2]
[421152222,1777174239084,-42569.52524569,8.7e-05,2]
[421152223,1777174239096,-5344.8976806,8.7e-05,2]
[421152224,1777174239116,-2592.62594964,8.7e-05,2]
[421152225,1777174239270,-31764.34136703,8.7e-05,2]
[421152226,1777174239282,-48993.48432967,8.7e-05,2]
[421152227,1777174239294,-579.78867862,8.7e-05,2]
[421152228,1777174239330,-1049.53799999,8.7e-05,2]
[421152231,1777174239344,-598.26313241,8.7e-05,2]
[421152244,1777174243045,-2205.7401,8.398e-05,2]
[421152245,1777174243055,-415319.51888987,8.7e-05,2]
[421152255,1777175432065,-299.85804714,8.197e-05,2]
[421152263,1777175438380,-0.14195286,8.197e-05,2]
[421152264,1777175438390,-300.0,8.197e-05,2]
[421152265,1777175438400,-1200.0,8.197e-05,2]
[421152266,1777175438410,-5022.71439136,8.198e-05,2]
[421152267,1777175438420,-3908.6847,8.198e-05,2]
[421152268,1777175438429,-7697.1357,8.198e-05,2]
[421152269,1777175438439,-2732.2898,8.198e-05,2]
[421152270,1777175438449,-280.0,8.219e-05,2]
[421152271,1777175438459,-150.0,8.221e-05,2]
[421152272,1777175438469,-395.38168406,8.247e-05,2]
[421152273,1777175438479,-500.0,8.247e-05,2]
[421152274,1777175438489,-186.2082496,8.247e-05,2]
[421152275,1777175438499,-460.45035264,8.247e-05,2]
[421152276,1777175438510,-500.0,8.247e-05,2]
[421152277,1777175438520,-500.0,8.247e-05,2]
[421152278,1777175438529,-314.46643996,8.247e-05,2]
[421152279,1777175438539,-500.0,8.247e-05,2]
[421152281,1777175438549,-500.0,8.247e-05,2]
[421152283,1777175438558,-500.0,8.247e-05,2]
[421152285,1777175438567,-500.0,8.247e-05,2]
[421152287,1777175438577,-500.0,8.247e-05,2]
[421152289,1777175438587,-5116.86809655,8.248e-05,2]
[421152292,1777175438599,-48993.48432967,8.248e-05,2]
[421152294,1777175438610,-1547.18,8.248e-05,2]
[421152312,1777175440679,-376.58159137,8.248e-05,2]
[421152313,1777175441123,-1545.28539443,8.248e-05,2]
[421152314,1777175441142,-8825.56077808,8.248e-05,2]
[421152315,1777175441153,-8947.21879473,8.248e-05,2]
[421152316,1777175441166,-8943.78386462,8.248e-05,2]
[421152317,1777175441177,-9077.54866152,8.248e-05,2]
[421152323,1777175446450,-3905.149,8.248e-05,2]
[421152324,1777175446662,-289.66767346,8.248e-05,2]
[421152332,1777175448138,-363487.31627817,8.248e-05,2]
[421152333,1777175488194,197.517,8.083e-05,2]
[421152334,1777175488231,2274.366,8.083e-05,2]
[421152335,1777175520112,166.65,1e-08,2]
[421152336,1777175525780,197.0,8.083e-05,3]
[421152337,1777175533430,154.0,8.083e-05,3]
[421152338,1777175591874,187.0,8.083e-05,3]
[421152339,1777175647437,178.0,8.083e-05,3]
[421152340,1777175706014,169.0,8.083e-05,3]
[421152341,1777175713186,164.0,8.083e-05,3]
[421152342,1777175768816,160.0,8.083e-05,3]
[421152343,1777175829194,152.0,8.083e-05,3]
[421152344,1777175886483,153.0,8.083e-05,3]
[421152345,1777175948169,153.0,8.083e-05,3]
[421152346,1777176012331,153.0,8.083e-05,3]
[421152347,1777176126916,153.0,8.083e-05,3]
[421152348,1777176185375,153.0,8.083e-05,3]
[421152349,1777176251581,153.0,8.083e-05,3]
[421152350,1777176307868,153.0,8.083e-05,3]
[421152351,1777176368188,153.0,8.083e-05,3]
[421152352,1777176425576,153.0,8.083e-05,3]
[421152353,1777176491024,153.0,8.083e-05,3]
[421152354,1777176548488,153.0,8.083e-05,3]
[421152355,1777176606187,153.0,8.083e-05,3]
[421152356,1777176632295,-1300.0,8.147e-05,2]
[421152357,1777176632308,-3250.0,8.147e-05,2]
[421152358,1777176632563,-566.8681,8.147e-05,2]
[421152359,1777176632574,-329.50189867,8.182e-05,2]
[421152360,1777176632584,-300.0,8.218e-05,2]
[421152361,1777176632594,-300.0,8.218e-05,2]
[421152362,1777176632604,-1200.0,8.218e-05,2]
[421152363,1777176632615,-280.0,8.219e-05,2]
[421152364,1777176632625,-4796.72835465,8.219e-05,2]
[421152365,1777176632636,-300.0,8.22e-05,2]
[421152366,1777176632646,-300.0,8.223e-05,2]
[421152367,1777176632656,-300.0,8.223e-05,2]
[421152368,1777176632667,-151.0,8.245e-05,2]
[421152369,1777176632676,-155.669,8.246e-05,2]
[421152370,1777176632686,-1819.493,8.247e-05,2]
[421152371,1777176632696,-197.518,8.247e-05,2]
[421152372,1777176632707,-153.89350709,8.348e-05,2]
[421152373,1777176632717,-150.0,8.485e-05,2]
[421152374,1777176632728,-3019.2514549,8.486e-05,2]
[421152375,1777176632738,-25378.3571176,8.486e-05,2]
[421152377,1777176632748,-1741.8853189,8.486e-05,2]
[421152379,1777176632758,-75239.4224123,8.486e-05,2]
[421152381,1777176632768,-197.48,8.498e-05,2]
[421152383,1777176632779,-244.0,8.553e-05,2]
[421152385,1777176632790,-151.0,8.597e-05,2]
[421152386,1777176632800,-11089.03194215,8.6e-05,2]
[421152387,1777176632812,-5797.91639475,8.6e-05,2]
[421152388,1777176638549,-607.7284631,8.6e-05,2]
[421152389,1777176638559,-2500.0,8.6e-05,2]
[421152390,1777176638569,-364.0,8.614e-05,2]
[421152391,1777176638579,-343.0,8.614e-05,2]
[421152392,1777176638588,-186.0,8.631e-05,2]
[421152393,1777176638598,-1116.13963345,8.689e-05,2]
[421152394,1777176638610,-6314.93223455,8.689e-05,2]
[421152395,1777176638619,-151.0,8.697e-05,2]
[421152396,1777176638628,-151.0,8.697e-05,2]
[421152397,1777176638638,-500.0,8.699e-05,2]
[421152398,1777176638648,-500.0,8.699e-05,2]
[421152399,1777176638657,-276.76717884,8.699e-05,2]
[421152400,1777176638667,-522.31524685,8.699e-05,2]
[421152401,1777176638676,-500.0,8.699e-05,2]
[421152402,1777176638685,-500.0,8.699e-05,2]
[421152403,1777176638694,-500.0,8.699e-05,2]
[421152404,1777176638704,-500.0,8.699e-05,2]
[421152405,1777176638713,-500.0,8.699e-05,2]
[421152406,1777176638723,-500.0,8.699e-05,2]
[421152407,1777176638732,-500.0,8.699e-05,2]
[421152408,1777176638741,-500.0,8.699e-05,2]
[421152409,1777176638751,-500.0,8.699e-05,2]
[421152410,1777176638760,-500.0,8.699e-05,2]
[421152411,1777176638769,-500.0,8.699e-05,2]
[421152412,1777176638779,-500.0,8.699e-05,2]
[421152413,1777176638788,-500.0,8.699e-05,2]
[421152414,1777176638798,-500.0,8.699e-05,2]
[421152415,1777176638807,-500.0,8.699e-05,2]
[421152416,1777176638816,-500.0,8.699e-05,2]
[421152417,1777176638826,-500.0,8.699e-05,2]
[421152418,1777176638835,-500.0,8.699e-05,2]
[421152419,1777176638844,-500.0,8.699e-05,2]
[421152420,1777176638854,-500.0,8.699e-05,2]
[421152421,1777176638864,-500.0,8.699e-05,2]
[421152422,1777176638874,-500.0,8.699e-05,2]
[421152423,1777176638883,-500.0,8.699e-05,2]
[421152424,1777176638893,-500.0,8.699e-05,2]
[421152425,1777176638902,-500.0,8.699e-05,2]
[421152426,1777176638912,-500.0,8.699e-05,2]
[421152427,1777176638921,-500.0,8.699e-05,2]
[421152428,1777176638930,-500.0,8.699e-05,2]
[421152429,1777176638940,-500.0,8.699e-05,2]